[Event "Titled Tuesday Blitz May 4 2021"]
[White "Kretov, Evgenij"]
[Black "Leitao, Rafael"]
[WhiteFideId "4167821"]
[BlackFideId "2101246"]
[WhiteElo "2381"]
[BlackElo "2609"]
[Result "1-0"]
[Round "10"]
[TimeControl "180+1"]
[Date "2021.05.04"]
[WhiteClock "0:00:33"]
[BlackClock "0:00:02"]

1. d4 {[%clk 0:03:00]}  Nf6 {[%clk 0:02:58]} 2. c4 {[%clk 0:03:00]}  g6 {[%clk 0:02:57]} 3. Nc3 {[%clk 0:03:01]}  Bg7 {[%clk 0:02:54]} 4. e4 {[%clk 0:03:01]}  d6 {[%clk 0:02:54]} 5. Be2 {[%clk 0:03:02]}  O-O {[%clk 0:02:55]} 6. Bg5 {[%clk 0:03:02]}  Na6 {[%clk 0:02:51]} 7. Qd2 {[%clk 0:03:02]}  e5 {[%clk 0:02:50]} 8. d5 {[%clk 0:03:02]}  Qe8 {[%clk 0:02:47]} 9. f3 {[%clk 0:02:59]}  Nh5 {[%clk 0:02:42]} 10. O-O-O {[%clk 0:02:55]}  f5 {[%clk 0:02:22]} 11. Be3 {[%clk 0:02:51]}  Nc5 {[%clk 0:02:15]} 12. Nh3 {[%clk 0:02:38]}  Nf4 {[%clk 0:01:57]} 13. Nxf4 {[%clk 0:02:25]}  exf4 {[%clk 0:01:58]} 14. Bxc5 {[%clk 0:02:23]}  dxc5 {[%clk 0:01:56]} 15. Bd3 {[%clk 0:02:15]}  Bd4 {[%clk 0:01:32]} 16. Rhe1 {[%clk 0:02:15]}  Be3 {[%clk 0:01:13]} 17. Rxe3 {[%clk 0:02:14]}  fxe3 {[%clk 0:01:14]} 18. Qxe3 {[%clk 0:02:15]}  Qe7 {[%clk 0:01:14]} 19. e5 {[%clk 0:02:11]}  f4 {[%clk 0:01:15]} 20. Qe2 {[%clk 0:02:07]}  Bf5 {[%clk 0:01:14]} 21. Re1 {[%clk 0:02:03]}  Bxd3 {[%clk 0:01:11]} 22. Qxd3 {[%clk 0:02:03]}  Rf5 {[%clk 0:01:11]} 23. e6 {[%clk 0:01:59]}  Rd8 {[%clk 0:01:09]} 24. Re2 {[%clk 0:01:53]}  Qf6 {[%clk 0:01:02]} 25. Kc2 {[%clk 0:01:43]}  Qe7 {[%clk 0:00:54]} 26. g4 {[%clk 0:01:34]}  fxg3 {[%clk 0:00:53]} 27. hxg3 {[%clk 0:01:34]}  c6 {[%clk 0:00:51]} 28. f4 {[%clk 0:01:31]}  Rd6 {[%clk 0:00:37]} 29. Qe4 {[%clk 0:01:20]}  Rf8 {[%clk 0:00:34]} 30. g4 {[%clk 0:00:58]}  Qf6 {[%clk 0:00:29]} 31. f5 {[%clk 0:00:59]}  gxf5 {[%clk 0:00:27]} 32. gxf5 {[%clk 0:00:59]}  Kh8 {[%clk 0:00:27]} 33. Kb3 {[%clk 0:00:55]}  Re8 {[%clk 0:00:24]} 34. Qf4 {[%clk 0:00:47]}  Rdd8 {[%clk 0:00:22]} 35. d6 {[%clk 0:00:43]}  b5 {[%clk 0:00:18]} 36. d7 {[%clk 0:00:39]}  Re7 {[%clk 0:00:17]} 37. Qc7 {[%clk 0:00:37]}  bxc4+ {[%clk 0:00:14]} 38. Ka3 {[%clk 0:00:36]}  Qf8 {[%clk 0:00:05]} 39. f6 {[%clk 0:00:34]}  Rexd7 {[%clk 0:00:02]} 40. exd7 {[%clk 0:00:33]} 1-0


[Site "https://www.chess.com"]

[Event "Titled Tuesday Blitz May 4 2021"]
[White "Kujawski, Adam"]
[Black "Roebers, Jan"]
[WhiteFideId "1100920"]
[BlackFideId "1007815"]
[WhiteElo "2053"]
[BlackElo "2196"]
[Result "1-0"]
[Round "10"]
[TimeControl "180+1"]
[Date "2021.05.04"]
[WhiteClock "0:00:04"]
[BlackClock "0:00:02"]

1. e4 {[%clk 0:03:00]}  e5 {[%clk 0:02:58]} 2. Nf3 {[%clk 0:02:37]}  Nc6 {[%clk 0:02:56]} 3. Bb5 {[%clk 0:02:37]}  a6 {[%clk 0:02:55]} 4. Ba4 {[%clk 0:02:36]}  Nf6 {[%clk 0:02:55]} 5. O-O {[%clk 0:02:36]}  Be7 {[%clk 0:02:55]} 6. d4 {[%clk 0:02:35]}  exd4 {[%clk 0:02:45]} 7. e5 {[%clk 0:02:34]}  Ne4 {[%clk 0:02:44]} 8. Nxd4 {[%clk 0:02:34]}  Nxd4 {[%clk 0:02:33]} 9. Qxd4 {[%clk 0:02:33]}  Nc5 {[%clk 0:02:32]} 10. Qg4 {[%clk 0:02:33]}  O-O {[%clk 0:02:25]} 11. Bh6 {[%clk 0:02:14]}  Ne6 {[%clk 0:01:57]} 12. Bb3 {[%clk 0:02:06]}  Kh8 {[%clk 0:01:55]} 13. Bxe6 {[%clk 0:02:01]}  gxh6 {[%clk 0:01:54]} 14. Bf5 {[%clk 0:01:49]}  Rg8 {[%clk 0:01:53]} 15. Qh3 {[%clk 0:01:19]}  Rg5 {[%clk 0:01:44]} 16. f4 {[%clk 0:01:12]}  Bc5+ {[%clk 0:01:41]} 17. Kh1 {[%clk 0:01:11]}  Rg7 {[%clk 0:01:40]} 18. Qxh6 {[%clk 0:00:51]}  d5 {[%clk 0:01:38]} 19. Bxc8 {[%clk 0:00:48]}  Rxc8 {[%clk 0:01:36]} 20. Nc3 {[%clk 0:00:43]}  Qf8 {[%clk 0:01:23]} 21. Nxd5 {[%clk 0:00:28]}  Rg6 {[%clk 0:01:15]} 22. Qxf8+ {[%clk 0:00:27]}  Bxf8 {[%clk 0:01:15]} 23. c3 {[%clk 0:00:27]}  c5 {[%clk 0:01:03]} 24. Rad1 {[%clk 0:00:26]}  c4 {[%clk 0:01:02]} 25. Nf6 {[%clk 0:00:26]}  Be7 {[%clk 0:00:57]} 26. Ne4 {[%clk 0:00:25]}  Rb6 {[%clk 0:00:53]} 27. Rf2 {[%clk 0:00:23]}  f5 {[%clk 0:00:46]} 28. exf6 {[%clk 0:00:21]}  Bxf6 {[%clk 0:00:45]} 29. Nxf6 {[%clk 0:00:21]}  Rxf6 {[%clk 0:00:44]} 30. g3 {[%clk 0:00:20]}  b5 {[%clk 0:00:40]} 31. Kg2 {[%clk 0:00:20]}  a5 {[%clk 0:00:37]} 32. Rd4 {[%clk 0:00:20]}  b4 {[%clk 0:00:36]} 33. cxb4 {[%clk 0:00:20]}  axb4 {[%clk 0:00:35]} 34. Rc2 {[%clk 0:00:20]}  Rfc6 {[%clk 0:00:31]} 35. b3 {[%clk 0:00:20]}  c3 {[%clk 0:00:23]} 36. Rxb4 {[%clk 0:00:19]}  Rd6 {[%clk 0:00:24]} 37. Kf3 {[%clk 0:00:06]}  Rd2 {[%clk 0:00:17]} 38. Rc1 {[%clk 0:00:06]}  Rxa2 {[%clk 0:00:14]} 39. Rc4 {[%clk 0:00:06]}  Rb8 {[%clk 0:00:07]} 40. R1xc3 {[%clk 0:00:05]}  Rxh2 {[%clk 0:00:06]} 41. Rc8+ {[%clk 0:00:05]}  Rxc8 {[%clk 0:00:06]} 42. Rxc8+ {[%clk 0:00:06]}  Kg7 {[%clk 0:00:07]} 43. Rc3 {[%clk 0:00:07]}  Kf7 {[%clk 0:00:06]} 44. Ke4 {[%clk 0:00:08]}  h5 {[%clk 0:00:06]} 45. Kd4 {[%clk 0:00:08]}  h4 {[%clk 0:00:06]} 46. gxh4 {[%clk 0:00:07]}  Rxh4 {[%clk 0:00:05]} 47. Ke5 {[%clk 0:00:08]}  Rh1 {[%clk 0:00:04]} 48. Rc7+ {[%clk 0:00:07]}  Ke8 {[%clk 0:00:04]} 49. Rb7 {[%clk 0:00:06]}  Rc1 {[%clk 0:00:03]} 50. f5 {[%clk 0:00:06]}  Rc6 {[%clk 0:00:02]} 51. f6 {[%clk 0:00:05]}  Kf8 {[%clk 0:00:02]} 52. b4 {[%clk 0:00:04]} 1-0


[Site "https://www.chess.com"]

[Event "Titled Tuesday Blitz May 4 2021"]
[White "Ljukin, Sergei"]
[Black "Gaboyan, Susanna"]
[WhiteFideId "14102200"]
[BlackFideId "13303627"]
[WhiteElo "2287"]
[BlackElo "2135"]
[Result "1-0"]
[Round "10"]
[TimeControl "180+1"]
[Date "2021.05.04"]
[WhiteClock "0:02:34"]
[BlackClock "0:01:34"]

1. e4 {[%clk 0:03:00]}  c5 {[%clk 0:02:55]} 2. Nf3 {[%clk 0:03:00]}  Nc6 {[%clk 0:02:55]} 3. d4 {[%clk 0:03:00]}  cxd4 {[%clk 0:02:56]} 4. Nxd4 {[%clk 0:03:01]}  Nf6 {[%clk 0:02:57]} 5. Nc3 {[%clk 0:03:01]}  e5 {[%clk 0:02:54]} 6. Ndb5 {[%clk 0:03:01]}  d6 {[%clk 0:02:52]} 7. Nd5 {[%clk 0:03:01]}  Nxd5 {[%clk 0:02:51]} 8. exd5 {[%clk 0:03:01]}  Ne7 {[%clk 0:02:52]} 9. c3 {[%clk 0:03:00]}  Ng6 {[%clk 0:02:53]} 10. Qa4 {[%clk 0:03:00]}  Bd7 {[%clk 0:02:52]} 11. Qb4 {[%clk 0:02:56]}  Qb8 {[%clk 0:02:52]} 12. Qc4 {[%clk 0:02:56]}  Kd8 {[%clk 0:02:27]} 13. Be3 {[%clk 0:02:49]}  a6 {[%clk 0:02:21]} 14. Bb6+ {[%clk 0:02:47]}  Ke7 {[%clk 0:02:21]} 15. Nc7 {[%clk 0:02:35]}  Ra7 {[%clk 0:01:34]} 16. a4 {[%clk 0:02:34]} 1-0


[Site "https://www.chess.com"]

[Event "Titled Tuesday Blitz May 4 2021"]
[White "Lysenko, Volodymyr"]
[Black "Antonio, Jorge Carlos"]
[WhiteFideId "14175770"]
[BlackFideId "113190"]
[WhiteElo "1957"]
[BlackElo "2247"]
[Result "1/2-1/2"]
[Round "10"]
[TimeControl "180+1"]
[Date "2021.05.04"]
[WhiteClock "0:00:07"]
[BlackClock "0:00:28"]

1. d4 {[%clk 0:02:57]}  g6 {[%clk 0:03:00]} 2. c4 {[%clk 0:02:55]}  Bg7 {[%clk 0:03:01]} 3. Nc3 {[%clk 0:02:55]}  Nf6 {[%clk 0:02:59]} 4. e4 {[%clk 0:02:55]}  d6 {[%clk 0:02:58]} 5. Bg5 {[%clk 0:02:52]}  h6 {[%clk 0:02:54]} 6. Bh4 {[%clk 0:02:51]}  O-O {[%clk 0:02:51]} 7. Nf3 {[%clk 0:02:47]}  c6 {[%clk 0:02:50]} 8. Be2 {[%clk 0:02:47]}  g5 {[%clk 0:02:45]} 9. Bg3 {[%clk 0:02:47]}  Nh5 {[%clk 0:02:42]} 10. O-O {[%clk 0:02:46]}  Nxg3 {[%clk 0:02:40]} 11. hxg3 {[%clk 0:02:46]}  Bg4 {[%clk 0:02:35]} 12. Re1 {[%clk 0:02:36]}  Qb6 {[%clk 0:02:34]} 13. Na4 {[%clk 0:02:23]}  Qc7 {[%clk 0:02:33]} 14. e5 {[%clk 0:02:02]}  Rd8 {[%clk 0:02:28]} 15. exd6 {[%clk 0:01:51]}  Rxd6 {[%clk 0:02:24]} 16. d5 {[%clk 0:01:28]}  e6 {[%clk 0:02:19]} 17. Rc1 {[%clk 0:01:22]}  cxd5 {[%clk 0:02:11]} 18. cxd5 {[%clk 0:01:19]}  Qa5 {[%clk 0:02:02]} 19. Rc8+ {[%clk 0:01:10]}  Kh7 {[%clk 0:02:00]} 20. Nxg5+ {[%clk 0:00:49]}  hxg5 {[%clk 0:01:56]} 21. Bxg4 {[%clk 0:00:49]}  Qxd5 {[%clk 0:01:50]} 22. Qc2+ {[%clk 0:00:41]}  Qd3 {[%clk 0:01:49]} 23. Qxd3+ {[%clk 0:00:34]}  Rxd3 {[%clk 0:01:48]} 24. b3 {[%clk 0:00:34]}  Rd7 {[%clk 0:01:40]} 25. Nc5 {[%clk 0:00:33]}  Na6 {[%clk 0:01:33]} 26. Rxa8 {[%clk 0:00:30]}  Nxc5 {[%clk 0:01:30]} 27. Rxa7 {[%clk 0:00:29]}  Bd4 {[%clk 0:01:24]} 28. Ra8 {[%clk 0:00:24]}  f5 {[%clk 0:01:15]} 29. Bf3 {[%clk 0:00:24]}  g4 {[%clk 0:01:11]} 30. Be2 {[%clk 0:00:23]}  Ne4 {[%clk 0:01:08]} 31. Kf1 {[%clk 0:00:17]}  Bxf2 {[%clk 0:00:59]} 32. Rd1 {[%clk 0:00:13]}  Bd4 {[%clk 0:00:48]} 33. Bc4 {[%clk 0:00:07]}  Nxg3+ {[%clk 0:00:44]} 34. Ke1 {[%clk 0:00:08]}  Bc3+ {[%clk 0:00:40]} 35. Kf2 {[%clk 0:00:07]}  Rxd1 {[%clk 0:00:39]} 36. Kxg3 {[%clk 0:00:08]}  e5 {[%clk 0:00:34]} 37. Kh4 {[%clk 0:00:07]}  Kg6 {[%clk 0:00:29]} 38. Rg8+ {[%clk 0:00:06]}  Kf6 {[%clk 0:00:28]} 39. Rf8+ {[%clk 0:00:06]}  Kg6 {[%clk 0:00:28]} 40. Rg8+ {[%clk 0:00:06]}  Kf6 {[%clk 0:00:28]} 41. Rf8+ {[%clk 0:00:06]}  Kg6 {[%clk 0:00:28]} 42. Rg8+ {[%clk 0:00:07]} 1/2-1/2


[Site "https://www.chess.com"]

[Event "Titled Tuesday Blitz May 4 2021"]
[White "Madaminov, Mukhiddin"]
[Black "Garcia Blanco, Omar"]
[WhiteFideId "14210703"]
[BlackFideId "2287153"]
[WhiteElo "1747"]
[BlackElo "2273"]
[Result "1-0"]
[Round "10"]
[TimeControl "180+1"]
[Date "2021.05.04"]
[WhiteClock "0:00:13"]
[BlackClock "0:00:01"]

1. d4 {[%clk 0:03:00]}  Nf6 {[%clk 0:02:57]} 2. Nc3 {[%clk 0:03:00]}  d5 {[%clk 0:02:57]} 3. Bf4 {[%clk 0:02:59]}  g6 {[%clk 0:02:55]} 4. Nf3 {[%clk 0:02:56]}  Bg7 {[%clk 0:02:55]} 5. Ne5 {[%clk 0:02:56]}  O-O {[%clk 0:02:52]} 6. Qd2 {[%clk 0:02:55]}  c5 {[%clk 0:02:48]} 7. e3 {[%clk 0:02:55]}  Qa5 {[%clk 0:02:42]} 8. Nb5 {[%clk 0:02:45]}  Qxd2+ {[%clk 0:02:36]} 9. Kxd2 {[%clk 0:02:46]}  Na6 {[%clk 0:02:20]} 10. f3 {[%clk 0:02:44]}  cxd4 {[%clk 0:02:16]} 11. exd4 {[%clk 0:02:42]}  Be6 {[%clk 0:02:09]} 12. c3 {[%clk 0:02:42]}  Nd7 {[%clk 0:02:04]} 13. Re1 {[%clk 0:02:32]}  Nxe5 {[%clk 0:02:03]} 14. Bxe5 {[%clk 0:02:32]}  Bh6+ {[%clk 0:02:00]} 15. Kc2 {[%clk 0:02:28]}  Rfc8 {[%clk 0:01:53]} 16. Kb3 {[%clk 0:02:20]}  Bd7 {[%clk 0:01:42]} 17. a4 {[%clk 0:02:16]}  f6 {[%clk 0:01:25]} 18. Bg3 {[%clk 0:02:12]}  Kf7 {[%clk 0:01:25]} 19. Bd3 {[%clk 0:02:08]}  Bg7 {[%clk 0:01:22]} 20. Re2 {[%clk 0:02:03]}  Bxb5 {[%clk 0:00:31]} 21. axb5 {[%clk 0:01:59]}  Nc7 {[%clk 0:00:15]} 22. Rhe1 {[%clk 0:01:57]}  Bf8 {[%clk 0:00:15]} 23. Ra1 {[%clk 0:01:51]}  Ne8 {[%clk 0:00:13]} 24. Ra5 {[%clk 0:01:35]}  b6 {[%clk 0:00:07]} 25. Ra4 {[%clk 0:01:29]}  Rd8 {[%clk 0:00:03]} 26. Re1 {[%clk 0:01:28]}  Rd7 {[%clk 0:00:03]} 27. Rea1 {[%clk 0:01:28]}  e6 {[%clk 0:00:02]} 28. Ra6 {[%clk 0:01:27]}  Rb7 {[%clk 0:00:01]} 29. c4 {[%clk 0:01:10]}  dxc4+ {[%clk 0:00:02]} 30. Bxc4 {[%clk 0:01:11]}  Bd6 {[%clk 0:00:03]} 31. Re1 {[%clk 0:01:09]}  Re7 {[%clk 0:00:03]} 32. Bd3 {[%clk 0:01:00]}  Bxg3 {[%clk 0:00:02]} 33. hxg3 {[%clk 0:01:01]}  Nc7 {[%clk 0:00:01]} 34. Ra4 {[%clk 0:00:56]}  Nd5 {[%clk 0:00:02]} 35. Bc4 {[%clk 0:00:54]}  Rd7 {[%clk 0:00:02]} 36. Rea1 {[%clk 0:00:52]}  Nc7 {[%clk 0:00:03]} 37. Rxa7 {[%clk 0:00:49]}  Rxa7 {[%clk 0:00:03]} 38. Rxa7 {[%clk 0:00:49]}  Ke7 {[%clk 0:00:04]} 39. Rb7 {[%clk 0:00:42]}  Na8 {[%clk 0:00:04]} 40. Rb8 {[%clk 0:00:40]}  Ra7 {[%clk 0:00:04]} 41. Rh8 {[%clk 0:00:35]}  Kd6 {[%clk 0:00:04]} 42. Bd3 {[%clk 0:00:32]}  Nc7 {[%clk 0:00:02]} 43. Rxh7 {[%clk 0:00:29]}  Nxb5 {[%clk 0:00:03]} 44. Rxa7 {[%clk 0:00:29]}  Nxa7 {[%clk 0:00:04]} 45. Bxg6 {[%clk 0:00:30]}  Nb5 {[%clk 0:00:03]} 46. Kc4 {[%clk 0:00:30]}  Nc7 {[%clk 0:00:03]} 47. g4 {[%clk 0:00:28]}  b5+ {[%clk 0:00:03]} 48. Kd3 {[%clk 0:00:27]}  Nd5 {[%clk 0:00:04]} 49. g3 {[%clk 0:00:25]}  Nb4+ {[%clk 0:00:03]} 50. Ke4 {[%clk 0:00:23]}  Nd5 {[%clk 0:00:02]} 51. f4 {[%clk 0:00:21]}  Nb6 {[%clk 0:00:03]} 52. b3 {[%clk 0:00:19]}  Nd5 {[%clk 0:00:02]} 53. Be8 {[%clk 0:00:19]}  Nc7 {[%clk 0:00:02]} 54. Bg6 {[%clk 0:00:18]}  Nd5 {[%clk 0:00:02]} 55. Kd3 {[%clk 0:00:19]}  Nb4+ {[%clk 0:00:01]} 56. Kd2 {[%clk 0:00:19]}  Nd5 {[%clk 0:00:02]} 57. Be4 {[%clk 0:00:18]}  Ne7 {[%clk 0:00:02]} 58. Kc3 {[%clk 0:00:18]}  f5 {[%clk 0:00:02]} 59. Bf3 {[%clk 0:00:13]}  fxg4 {[%clk 0:00:02]} 60. Bxg4 {[%clk 0:00:14]}  Nd5+ {[%clk 0:00:03]} 61. Kd3 {[%clk 0:00:14]}  Nb4+ {[%clk 0:00:03]} 62. Ke4 {[%clk 0:00:14]}  Nd5 {[%clk 0:00:03]} 63. Bf3 {[%clk 0:00:15]}  Nc3+ {[%clk 0:00:03]} 64. Kd3 {[%clk 0:00:15]}  Na2 {[%clk 0:00:03]} 65. g4 {[%clk 0:00:14]}  Nb4+ {[%clk 0:00:04]} 66. Kc3 {[%clk 0:00:15]}  Na6 {[%clk 0:00:04]} 67. g5 {[%clk 0:00:13]}  Nc7 {[%clk 0:00:04]} 68. Kb4 {[%clk 0:00:11]}  Ne8 {[%clk 0:00:01]} 69. Kxb5 {[%clk 0:00:10]}  Ng7 {[%clk 0:00:01]} 70. Bg4 {[%clk 0:00:10]}  Ne8 {[%clk 0:00:01]} 71. Kc4 {[%clk 0:00:10]}  Nc7 {[%clk 0:00:02]} 72. g6 {[%clk 0:00:09]}  Ne8 {[%clk 0:00:02]} 73. b4 {[%clk 0:00:09]}  Nf6 {[%clk 0:00:01]} 74. b5 {[%clk 0:00:10]}  Nxg4 {[%clk 0:00:01]} 75. g7 {[%clk 0:00:09]}  Nf6 {[%clk 0:00:02]} 76. Kb4 {[%clk 0:00:08]}  Kc7 {[%clk 0:00:02]} 77. Kc5 {[%clk 0:00:07]}  Nd7+ {[%clk 0:00:02]} 78. Kb4 {[%clk 0:00:07]}  Nf6 {[%clk 0:00:03]} 79. Ka5 {[%clk 0:00:07]}  Kb7 {[%clk 0:00:03]} 80. b6 {[%clk 0:00:08]}  Ng8 {[%clk 0:00:03]} 81. Kb5 {[%clk 0:00:08]}  Ne7 {[%clk 0:00:04]} 82. Kc5 {[%clk 0:00:09]}  Ng8 {[%clk 0:00:04]} 83. Kd6 {[%clk 0:00:09]}  Kxb6 {[%clk 0:00:04]} 84. Kxe6 {[%clk 0:00:10]}  Kc7 {[%clk 0:00:05]} 85. f5 {[%clk 0:00:11]}  Kd8 {[%clk 0:00:05]} 86. f6 {[%clk 0:00:12]}  Nh6 {[%clk 0:00:05]} 87. f7 {[%clk 0:00:12]}  Nxf7 {[%clk 0:00:01]} 88. g8=Q+ {[%clk 0:00:13]} 1-0


[Site "https://www.chess.com"]

[Event "Titled Tuesday Blitz May 4 2021"]
[White "Maiorov, Nikita"]
[Black "Pinto, Daniel"]
[WhiteFideId "13501720"]
[BlackFideId "3303144"]
[WhiteElo "2440"]
[BlackElo "1936"]
[Result "1-0"]
[Round "10"]
[TimeControl "180+1"]
[Date "2021.05.04"]
[WhiteClock "0:00:45"]
[BlackClock "0:00:04"]

1. d4 {[%clk 0:03:00]}  Nf6 {[%clk 0:02:59]} 2. c4 {[%clk 0:02:59]}  e6 {[%clk 0:02:59]} 3. Nf3 {[%clk 0:02:59]}  d5 {[%clk 0:02:59]} 4. Nc3 {[%clk 0:02:58]}  Bb4 {[%clk 0:02:59]} 5. Bg5 {[%clk 0:02:56]}  h6 {[%clk 0:02:57]} 6. Bxf6 {[%clk 0:02:56]}  Qxf6 {[%clk 0:02:57]} 7. Qa4+ {[%clk 0:02:56]}  Nc6 {[%clk 0:02:57]} 8. e3 {[%clk 0:02:55]}  O-O {[%clk 0:02:55]} 9. Be2 {[%clk 0:02:54]}  dxc4 {[%clk 0:02:51]} 10. a3 {[%clk 0:02:53]}  Bd6 {[%clk 0:02:48]} 11. Qxc4 {[%clk 0:02:44]}  e5 {[%clk 0:02:45]} 12. d5 {[%clk 0:02:42]}  Ne7 {[%clk 0:02:39]} 13. O-O {[%clk 0:02:41]}  Qg6 {[%clk 0:02:32]} 14. Nd2 {[%clk 0:02:28]}  Bh3 {[%clk 0:02:15]} 15. Bf3 {[%clk 0:02:26]}  f5 {[%clk 0:02:15]} 16. Kh1 {[%clk 0:02:25]}  Bg4 {[%clk 0:02:14]} 17. Bxg4 {[%clk 0:02:24]}  fxg4 {[%clk 0:02:14]} 18. Nce4 {[%clk 0:02:24]}  Nf5 {[%clk 0:02:08]} 19. Rac1 {[%clk 0:02:23]}  Rf7 {[%clk 0:02:04]} 20. Qb5 {[%clk 0:02:22]}  b6 {[%clk 0:02:00]} 21. b4 {[%clk 0:02:12]}  Raf8 {[%clk 0:01:54]} 22. Qe2 {[%clk 0:02:09]}  Nh4 {[%clk 0:01:20]} 23. Ng3 {[%clk 0:02:07]}  h5 {[%clk 0:00:28]} 24. Nde4 {[%clk 0:02:03]}  Qh6 {[%clk 0:00:28]} 25. Rc6 {[%clk 0:01:41]}  Nf5 {[%clk 0:00:23]} 26. Nxf5 {[%clk 0:01:38]}  Rxf5 {[%clk 0:00:23]} 27. Kg1 {[%clk 0:01:36]}  Qg6 {[%clk 0:00:17]} 28. Qc2 {[%clk 0:01:33]}  Kh7 {[%clk 0:00:15]} 29. Ng3 {[%clk 0:01:31]}  R5f7 {[%clk 0:00:06]} 30. Nxh5 {[%clk 0:01:29]}  Qxc2 {[%clk 0:00:04]} 31. Rxc2 {[%clk 0:01:28]}  e4 {[%clk 0:00:04]} 32. Rc4 {[%clk 0:01:24]}  Rf5 {[%clk 0:00:03]} 33. Ng3 {[%clk 0:01:23]}  Rxd5 {[%clk 0:00:04]} 34. Nxe4 {[%clk 0:01:22]}  Be5 {[%clk 0:00:02]} 35. g3 {[%clk 0:01:19]}  Kg6 {[%clk 0:00:02]} 36. Rfc1 {[%clk 0:01:17]}  Kf5 {[%clk 0:00:01]} 37. Nc3 {[%clk 0:01:00]}  Rd2 {[%clk 0:00:01]} 38. Nb1 {[%clk 0:00:53]}  Rfd8 {[%clk 0:00:01]} 39. Nxd2 {[%clk 0:00:52]}  Rxd2 {[%clk 0:00:02]} 40. Rxc7 {[%clk 0:00:51]}  Bb2 {[%clk 0:00:01]} 41. R1c2 {[%clk 0:00:50]}  Rd1+ {[%clk 0:00:02]} 42. Kg2 {[%clk 0:00:50]}  Bxa3 {[%clk 0:00:03]} 43. Rxa7 {[%clk 0:00:48]}  Bxb4 {[%clk 0:00:03]} 44. Rf7+ {[%clk 0:00:49]}  Kg6 {[%clk 0:00:02]} 45. Rcc7 {[%clk 0:00:48]}  Bc5 {[%clk 0:00:02]} 46. Rxg7+ {[%clk 0:00:48]}  Kf5 {[%clk 0:00:02]} 47. Rcf7+ {[%clk 0:00:47]}  Ke4 {[%clk 0:00:03]} 48. Rxg4+ {[%clk 0:00:47]}  Kd3 {[%clk 0:00:03]} 49. Rd7+ {[%clk 0:00:46]}  Ke2 {[%clk 0:00:04]} 50. Rxd1 {[%clk 0:00:45]} 1-0


[Site "https://www.chess.com"]

[Event "Titled Tuesday Blitz May 4 2021"]
[White "Manolache, Marius"]
[Black "Mohammad Fahad, Rahman"]
[WhiteFideId "1201530"]
[BlackFideId "10207791"]
[WhiteElo "2391"]
[BlackElo "2308"]
[Result "1-0"]
[Round "10"]
[TimeControl "180+1"]
[Date "2021.05.04"]
[WhiteClock "0:01:47"]
[BlackClock "0:00:18"]

1. d4 {[%clk 0:03:00]}  d5 {[%clk 0:03:00]} 2. c4 {[%clk 0:02:59]}  c6 {[%clk 0:03:00]} 3. Nc3 {[%clk 0:02:59]}  Nf6 {[%clk 0:03:01]} 4. Nf3 {[%clk 0:02:58]}  e6 {[%clk 0:03:01]} 5. g3 {[%clk 0:02:58]}  dxc4 {[%clk 0:02:56]} 6. Bg2 {[%clk 0:02:58]}  Nbd7 {[%clk 0:02:51]} 7. O-O {[%clk 0:02:56]}  Bb4 {[%clk 0:02:48]} 8. Bg5 {[%clk 0:02:54]}  h6 {[%clk 0:02:47]} 9. Bxf6 {[%clk 0:02:54]}  Nxf6 {[%clk 0:02:44]} 10. Ne5 {[%clk 0:02:54]}  O-O {[%clk 0:02:44]} 11. Nxc4 {[%clk 0:02:50]}  Nd5 {[%clk 0:02:28]} 12. Rc1 {[%clk 0:02:44]}  Nxc3 {[%clk 0:02:26]} 13. bxc3 {[%clk 0:02:44]}  Be7 {[%clk 0:02:26]} 14. Rb1 {[%clk 0:02:43]}  Qc7 {[%clk 0:02:22]} 15. Ne5 {[%clk 0:02:42]}  Rd8 {[%clk 0:02:21]} 16. Qb3 {[%clk 0:02:40]}  Bf6 {[%clk 0:02:21]} 17. f4 {[%clk 0:02:39]}  c5 {[%clk 0:02:09]} 18. e3 {[%clk 0:02:37]}  Rb8 {[%clk 0:02:05]} 19. Nc6 {[%clk 0:02:36]}  bxc6 {[%clk 0:01:45]} 20. Qxb8 {[%clk 0:02:35]}  Qa5 {[%clk 0:01:46]} 21. Rfc1 {[%clk 0:02:25]}  Qxa2 {[%clk 0:01:38]} 22. Qb2 {[%clk 0:02:20]}  Qc4 {[%clk 0:01:37]} 23. Qb3 {[%clk 0:02:17]}  Qd3 {[%clk 0:01:34]} 24. Re1 {[%clk 0:02:16]}  Ba6 {[%clk 0:01:19]} 25. Bf1 {[%clk 0:02:11]}  Qxf1+ {[%clk 0:00:42]} 26. Rxf1 {[%clk 0:02:10]}  Bxf1 {[%clk 0:00:42]} 27. Kxf1 {[%clk 0:02:09]}  cxd4 {[%clk 0:00:42]} 28. cxd4 {[%clk 0:02:09]}  Rd5 {[%clk 0:00:40]} 29. Qc4 {[%clk 0:02:07]}  Ra5 {[%clk 0:00:36]} 30. Qxc6 {[%clk 0:02:03]}  Ra2 {[%clk 0:00:35]} 31. Qc4 {[%clk 0:02:02]}  Rxh2 {[%clk 0:00:35]} 32. Kg1 {[%clk 0:02:01]}  Rd2 {[%clk 0:00:34]} 33. Qc3 {[%clk 0:01:59]}  Ra2 {[%clk 0:00:32]} 34. Qd3 {[%clk 0:01:56]}  g6 {[%clk 0:00:31]} 35. Qc4 {[%clk 0:01:54]}  Ra3 {[%clk 0:00:29]} 36. Kf2 {[%clk 0:01:53]}  h5 {[%clk 0:00:26]} 37. Rb8+ {[%clk 0:01:50]}  Kg7 {[%clk 0:00:25]} 38. Rb7 {[%clk 0:01:51]}  h4 {[%clk 0:00:19]} 39. gxh4 {[%clk 0:01:50]}  Bxh4+ {[%clk 0:00:18]} 40. Ke2 {[%clk 0:01:50]}  Ra5 {[%clk 0:00:18]} 41. Qxe6 {[%clk 0:01:47]} 1-0


[Site "https://www.chess.com"]